Cogmind - Beta 16.1 @@@ ROGUE MODE // 2026.02.28 @ 21:29:26 Player: Thqwib-Linux Result: Self-destructed Performance ------------- Evolutions (2) 1000 Regions Visited (5) 1000 Robots Destroyed (8) 40 Value Destroyed (319) 319 Prototype IDs (23) 460 Alien Tech Used (0) 0 Bonus (300) 300 TOTAL SCORE: 3119 Bonus ------- Aligned with FarCom 300 Cogmind --------- Core Integrity 412/550 Matter 225/300 Energy 100/100 System Corruption 0% Temperature Cool (9) Movement Rolling (100) Location -8/Materials Parts ------- > --- POWER (1) -------- (None) > --- PROPULSION (3) --- Armored Huge Wheel > --- UTILITY (3) ------ Medium Storage Unit > --- WEAPON (4) ------- Light Assault Rifle > --- INVENTORY (10) --- Light Ion Engine Light Fission Core Modified TNC Peak State ------------ > --- POWER ------------ Light Nuclear Core > --- PROPULSION ------- Carbon-fiber Leg Armored Huge Wheel > --- UTILITY ---------- Improved Heat Sink Medium Storage Unit > --- WEAPON ----------- Light Assault Rifle > --- INVENTORY -------- Light Ion Engine Light Fission Core Modified TNC [Rating: 20] Favorites ----------- Power Light Ion Engine Engine Light Ion Engine Power Core Light Nuclear Core Propulsion Aluminum Leg Leg Aluminum Leg Wheel Armored Huge Wheel Utility Small Storage Unit Device Improved Heat Sink Storage Small Storage Unit Weapon Light Assault Rifle Energy Gun EM Pulse Gun Ballistic Gun Light Assault Rifle Build | -11 -10 -10 -10 -9 -8 ------- Run | Yrd Mat Min Exi Min Mat Slots Evolved 4 | . . . . . 4 Power . | . . . . . . Propulsion 1 | . . . . . 1 Utility 1 | . . . . . 1 Weapon 2 | . . . . . 2 Parts Attached 7 | . . 1 . 1 5 Power 1 | . . . . 1 . Engine . | . . . . . . Core 1 | . . . . 1 . Reactor . | . . . . . . Propulsion 3 | . . . . . 3 Treads . | . . . . . . Leg 2 | . . . . . 2 Wheel 1 | . . . . . 1 Hover . | . . . . . . Flight . | . . . . . . Utility 2 | . . . . . 2 Device 1 | . . . . . 1 Storage 1 | . . . . . 1 Processor . | . . . . . . Hackware . | . . . . . . Protection . | . . . . . . Artifact . | . . . . . . Weapon 1 | . . 1 . . . Energy Gun 1 | . . 1 . . . Energy Cannon . | . . . . . . Ballistic Gun . | . . . . . . Ballistic Cannon . | . . . . . . Launcher . | . . . . . . Special Weapon . | . . . . . . Impact Weapon . | . . . . . . Slashing Weapon . | . . . . . . Piercing Weapon . | . . . . . . Special Melee Weapon . | . . . . . . Unidentified Prototypes . | . . . . . . Corrupted Parts 1 | . . . . 1 . System Corruption 5 | . . . . 5 . Parts Lost 4 | . . 1 . . 3 Power 1 | . . . . . 1 Propulsion 1 | . . . . . 1 Utility 1 | . . . . . 1 Weapon 1 | . . 1 . . . Highest Loss Streak 3 | . . 1 . . 3 To Critical Strikes . | . . . . . . Average Backups 4 | 5 3 3 4 5 3 Power 1 | 1 1 1 1 2 2 Propulsion . | 3 . 1 1 1 . Utility 1 | . . 1 1 2 1 Weapon . | 1 1 . . . . Tool/Special . | . . . . . . Unused Backups 3 | . . . . 1 2 Power 1 | . . . . . 1 Propulsion . | . . . . . . Utility 1 | . . . . . 1 Weapon 1 | . . . . 1 . Tool/Special . | . . . . . . Average Slot Usage (%) 77 | . 85 85 85 83 44 Engine 10 | . 14 14 14 11 . Core 2 | . . . . 2 8 Leg 23 | . 28 28 28 28 5 Wheel 1 | . . . . . 8 Storage 13 | . 14 14 14 14 9 Energy Gun 11 | . 14 14 14 12 . Ballistic Gun 13 | . 14 14 14 14 9 Peak Build Rating 20 | 6 6 6 7 9 20 Average Rating 8 | 6 6 5 6 7 16 On Entrance 6 | 6 6 6 6 7 8 Avg Prop Armor Cover (%) 11 | . . . . . 11 Naked Turns . | . . . . . . Heaviest Build 17 | 11 11 11 11 13 17 Greatest Support 30 | 20 20 20 20 20 30 Greatest Overweight (x) . | . . . . . . Average Overweight (x) . | . . . . . . Largest Inventory Capacity 10 | 8 8 8 8 8 10 Average Capacity 8 | 8 8 8 8 8 9 Most Carried 7 | 5 4 4 5 7 4 Average Carried 4 | 4 3 3 4 5 3 Final Capacity 10 | 8 8 8 8 8 10 Final Carried 5 | 2 4 3 5 5 3 Class Distribution -------------------- 100% | Mutant Dominant Class ---------------- Mutant | -10/Materials Mutant | -10/Mines Mutant | -10/Exiles Mutant | -9/Mines Mutant | -8/Materials Resources | -11 -10 -10 -10 -9 -8 ----------- Run | Yrd Mat Min Exi Min Mat Matter Collected 237 | 181 23 17 . 16 . Remotely . | . . . . . . Salvage Created 370 | . 62 110 . 86 112 Parts 17 | . 5 4 . 4 4 Haulers Intercepted . | . . . . . . Recyclers Shooed . | . . . . . . Parts Field Recycled . | . . . . . . Retrieved Matter . | . . . . . . Parts Self-Destructed . | . . . . . . Prevented . | . . . . . . Parts Restored . | . . . . . . Kills | -11 -10 -10 -10 -9 -8 ------- Run | Yrd Mat Min Exi Min Mat Combat Hostiles Destroyed 7 | . 1 2 . 2 2 Guns 7 | . 1 2 . 2 2 Classes Destroyed 2 | . 2 . . . . Operator 1 | . 1 . . . . Grunt 7 | . 1 2 . 2 2 Best Kill Streak 2 | . 1 2 . 2 1 Combat Bots Only 2 | . 1 2 . 2 1 Max Kills in Single Turn 1 | . 1 1 . 1 1 Gunslinging . | . . . . . . Exploded . | . . . . . . Melee . | . . . . . . Uniques/NPCs Destroyed . | . . . . . . Combat | -11 -10 -10 -10 -9 -8 -------- Run | Yrd Mat Min Exi Min Mat Hostile Shots Fired 68 | . . 17 . 9 42 Missed 12 | . . 4 . 1 7 Hits 56 | . . 13 . 8 35 Projectile 56 | . . 13 . 8 35 Critical Strikes 2 | . . . . . 2 Damage Taken 884 | . . 188 . 112 584 Core 186 | . . 35 . 13 138 Absorbed by Shields . | . . . . . . Core Remaining (%) 90 | 100 . . . 80 . Volleys Fired 62 | . 7 9 . 6 40 Largest 2 | . 2 2 . 2 1 Hottest 60 | . 60 60 . 60 20 Shots Fired 84 | . 14 18 . 12 40 Gun 84 | . 14 18 . 12 40 Cannon . | . . . . . . Launcher . | . . . . . . Special . | . . . . . . Kinetic 62 | . 7 9 . 6 40 Thermal . | . . . . . . Explosive . | . . . . . . Electromagnetic 22 | . 7 9 . 6 . Robot Hit Streak 10 | . 6 8 . 9 10 Robot Miss Streak 2 | . 2 1 . 2 2 Penetration Max . | . . . . . . Secondary Targets . | . . . . . . Shots Hit Robots 62 | . 8 14 . 9 31 Core Hits 23 | . 3 5 . 5 10 Critical Kills . | . . . . . . Critical Parts Destroyed . | . . . . . . Critical Strikes . | . . . . . . Melee Attacks . | . . . . . . Impact . | . . . . . . Slashing . | . . . . . . Piercing . | . . . . . . Sneak Attacks . | . . . . . . Combat Hostiles . | . . . . . . Follow-up Attacks . | . . . . . . Damage Inflicted 593 | . 86 156 . 104 247 Guns 585 | . 86 156 . 96 247 Cannons . | . . . . . . Explosions . | . . . . . . Melee . | . . . . . . Ramming 8 | . . . . 8 . Kinetic 372 | . 33 59 . 33 247 Thermal . | . . . . . . Explosive . | . . . . . . Electromagnetic 213 | . 53 97 . 63 . Impact . | . . . . . . Slashing . | . . . . . . Piercing . | . . . . . . Highest Corruption 5 | . . . . 5 . Average Corruption 5 | . . . . 5 . Corruption Purged . | . . . . . . Corruption Blocked . | . . . . . . Overload Shots . | . . . . . . Overflow Damage . | . . . . . . Projectiles . | . . . . . . Explosions . | . . . . . . Melee . | . . . . . . Knockbacks . | . . . . . . Impact . | . . . . . . Kinetic . | . . . . . . Secondary . | . . . . . . Self-Inflicted Damage . | . . . . . . Shots . | . . . . . . Rammed . | . . . . . . Targets Rammed 2 | . . . . 2 . Kicked 2 | . . . . 2 . Crushed . | . . . . . . Highest Temperature 127 | . 40 127 . 100 23 Average Temperature 49 | . 17 66 . 58 11 Received Heat Transfer 525 | . . 108 . 66 351 Siege Activations . | . . . . . . Martial Activations . | . . . . . . Shielding Activations . | . . . . . . Robots Disrupted . | . . . . . . Combat Hostiles . | . . . . . . Robots Corrupted . | . . . . . . Combat Hostiles . | . . . . . . Parts Fried . | . . . . . . Impact Corruptions . | . . . . . . Robots Melted . | . . . . . . Combat Hostiles . | . . . . . . Parts Melted . | . . . . . . Heat Transferred . | . . . . . . Parts Sabotaged . | . . . . . . Parts Stolen . | . . . . . . Parts Stripped . | . . . . . . Power Chain Reactions . | . . . . . . Alert | -11 -10 -10 -10 -9 -8 ------- Run | Yrd Mat Min Exi Min Mat Maximum Alert Level . | . . . . . . Low Security (%) 100 | 100 100 100 . 100 100 Level 1 . | . . . . . . Level 2 . | . . . . . . Level 3 . | . . . . . . Level 4 . | . . . . . . Level 5 . | . . . . . . High Security . | . . . . . . Max Security . | . . . . . . Peak Influence 65 | . 20 40 . 45 65 Initial 17 | . . 3 . . 17 Average 17 | . 5 19 . 10 35 Influence Increases 265 | . 40 50 . 65 110 Destroy 0b10 Robot/C 140 | . 20 40 . 40 40 Destroy 0b10 Robot/NC 5 | . 5 . . . . Destroy Leader 30 | . . 10 . 10 10 Disable Machine 15 | . 15 . . . . Lose Combat Pursuer 75 | . . . . 15 60 Influence Decreases 225 | . 30 30 30 20 115 Entered New Map 65 | . . 7 30 . 28 Time Decay 130 | . 30 23 . 20 57 Lost Part 30 | . . . . . 30 Squads Dispatched 1 | . 1 . . . . Investigation 1 | . 1 . . . . Extermination . | . . . . . . Reinforcement . | . . . . . . Assault . | . . . . . . Garrison . | . . . . . . Intercept . | . . . . . . Searches Triggered . | . . . . . . Construction Impeded . | . . . . . . Haulers Reinforced . | . . . . . . Active Scanning Responses . | . . . . . . Cargo Convoy Interrupts . | . . . . . . Stealth | -11 -10 -10 -10 -9 -8 --------- Run | Yrd Mat Min Exi Min Mat Distress Signals . | . . . . . . Communications Jammed . | . . . . . . Distress Signals . | . . . . . . Times Spotted 19 | . 4 2 . 4 9 Peak Tracking Total 5 | . 2 2 . 3 5 Tactical Retreats 3 | . . . . 1 2 Traps | -11 -10 -10 -10 -9 -8 ------- Run | Yrd Mat Min Exi Min Mat Traps Triggered . | . . . . . . Indirectly . | . . . . . . Trap Hack Attempts . | . . . . . . Triggered . | . . . . . . Disarmed . | . . . . . . Reprogrammed . | . . . . . . Reused . | . . . . . . Traps Extracted . | . . . . . . Installed . | . . . . . . Triggered . | . . . . . . Machines | -11 -10 -10 -10 -9 -8 ---------- Run | Yrd Mat Min Exi Min Mat Machines Disabled 1 | . 1 . . . . Max in Single Turn 1 | . 1 . . . . Machines Repaired . | . . . . . . Machines Dismantled . | . . . . . . Machines Sabotaged . | . . . . . . Overloaded Fab Kills . | . . . . . . Hacking | -11 -10 -10 -10 -9 -8 --------- Run | Yrd Mat Min Exi Min Mat Machines Accessed 2 | . 1 . 1 . . Terminals 1 | . 1 . . . . Fabricators . | . . . . . . Repair Stations . | . . . . . . Recycling Units . | . . . . . . Scanalyzers . | . . . . . . Garrison Access . | . . . . . . Total Hacks 3 | . 2 . 1 . . Successful 1 | . . . 1 . . Failed 2 | . 2 . . . . Catastrophic . | . . . . . . Database Lockouts . | . . . . . . Manual 3 | . 2 . 1 . . Terminals 2 | . 2 . . . . Fabricators . | . . . . . . Repair Stations . | . . . . . . Recycling Units . | . . . . . . Scanalyzers . | . . . . . . Garrison Access . | . . . . . . Terminal Hacks 1 | . . . 1 . . Proto ID Catalog 1 | . . . 1 . . Fabricator Hacks . | . . . . . . Repair Station Hacks . | . . . . . . Recycling Unit Hacks . | . . . . . . Scanalyzer . | . . . . . . Garrison Access Hacks . | . . . . . . Unauthorized Hacks . | . . . . . . Terminals . | . . . . . . Fabricators . | . . . . . . Repair Stations . | . . . . . . Recycling Units . | . . . . . . Scanalyzers . | . . . . . . Garrison Access . | . . . . . . Data Cores Recovered . | . . . . . . Used . | . . . . . . Hacking Detections 1 | . 1 . . . . Full Trace Events . | . . . . . . Feedback Events . | . . . . . . Feedback Blocked . | . . . . . . Robot Schematics Acquired . | . . . . . . Robots Built . | . . . . . . Authchips . | . . . . . . Time . | . . . . . . Total Robot Build Rating . | . . . . . . Part Schematics Acquired . | . . . . . . Parts Built . | . . . . . . Authchips . | . . . . . . Time . | . . . . . . Total Part Build Rating . | . . . . . . Part Studies Acquired . | . . . . . . Parts Repaired . | . . . . . . Time . | . . . . . . Parts Recycled . | . . . . . . Recycled Matter . | . . . . . . Retrieved Matter . | . . . . . . Retrieved Components . | . . . . . . Parts Scanalyzed . | . . . . . . Part Schematics Acquired . | . . . . . . Parts Damaged . | . . . . . . Bothacking | -11 -10 -10 -10 -9 -8 ------------ Run | Yrd Mat Min Exi Min Mat Used RIF Installer . | . . . . . . Robots Hacked . | . . . . . . Non-combat . | . . . . . . Combat . | . . . . . . Robot Hacks Applied . | . . . . . . Relay Couplers Released . | . . . . . . Fabnet Peak Effective % . | . . . . . . Robots Rewired . | . . . . . . Allies Hacked . | . . . . . . Hacks Repelled . | . . . . . . Allies | -11 -10 -10 -10 -9 -8 -------- Run | Yrd Mat Min Exi Min Mat Total Allies . | . . . . . . Largest Group . | . . . . . . Highest-Rated Group . | . . . . . . Highest-Rated Ally . | . . . . . . Total Orders . | . . . . . . Ally Attacks . | . . . . . . Total Damage . | . . . . . . Kills . | . . . . . . Allies Corrupted . | . . . . . . Allies Melted . | . . . . . . Intel | -11 -10 -10 -10 -9 -8 ------- Run | Yrd Mat Min Exi Min Mat Active Infowar (turns) . | . . . . . . Robot Analysis Total . | . . . . . . Derelict Logs Recovered 2 | . . . . 2 . Drone Launches . | . . . . . . Drone Recoveries . | . . . . . . Exploration | -11 -10 -10 -10 -9 -8 ------------- Run | Yrd Mat Min Exi Min Mat Turns Passed 721 | 2 127 75 253 133 131 Spaces Moved 472 | 1 88 35 210 91 47 Core . | . . . . . . Treads . | . . . . . . Legs 429 | 1 88 35 210 91 4 Wheels 43 | . . . . . 43 Hover . | . . . . . . Flight . | . . . . . . Fastest Speed 100 | 120 120 120 120 120 100 Average Speed 118 | 120 120 120 120 120 101 Slowest Speed 120 | 120 120 120 120 120 120 Overloaded Moves . | . . . . . . Propulsion Burnouts . | . . . . . . Robots Hopped . | . . . . . . Potential Cave-ins . | . . . . . . Cave-ins Triggered . | . . . . . . Exploration Rate (%) 23 | 2 28 9 62 31 9 Regions Visited 5 Branch Regions 3 Pre-discovered Areas 2 | . . . . 2 . Known Exits Taken 1 | . . . . 1 . Unknown Exits Taken 4 | 1 1 1 1 . . Scrap Searched 2 | . . 1 . 1 . Spaces Dug . | . . . . . . Terrain Destroyed . | . . . . . . Melee . | . . . . . . Projectile . | . . . . . . AOE . | . . . . . . Terrain Rammed . | . . . . . . Walls Destroyed . | . . . . . . Machines Disabled . | . . . . . . Actions | -11 -10 -10 -10 -9 -8 --------- Run | Yrd Mat Min Exi Min Mat Total 567 | 4 97 52 211 105 98 Wait 11 | . 1 8 . . 2 Move 467 | . 87 34 209 90 47 Hop . | . . . . . . Pick Up 6 | . 2 . 2 2 . Fast Attach 3 | . . . . . 3 Attach 3 | . . 1 . . 2 Detach . | . . . . . . Swap 1 | . . . . 1 . Drop 12 | 4 . . . 4 4 Fire 62 | . 7 9 . 6 40 Melee . | . . . . . . Ram . | . . . . . . Kick 2 | . . . . 2 . Crush . | . . . . . . Escape Stasis . | . . . . . . Rewire . | . . . . . . Trap . | . . . . . . Miscellaneous . | . . . . . . Route ------- -11/Scrapyard -10/Materials -10/Mines -10/Exiles (discovered 2 exits: [*Min x2]) -9/Mines -8/Materials History --------- Turn | Location | Event 3 | -11/Scrapyard | Discovered new exit (range 0) 3 | -11/Scrapyard | Entered Materials 4 | -10/Materials | Met a group of wandering Federalists 109 | -10/Materials | Discovered new exit (range 10) 130 | -10/Materials | Entered Mines 201 | -10/Mines | Deemed a non-threat by the Exiles lab entrance 201 | -10/Mines | Discovered new exit (range 5) 205 | -10/Mines | Entered Exiles 223 | -10/Exiles | Discovered new exit (range 15) 239 | -10/Exiles | Met 8R-AWN 256 | -10/Exiles | Met EX-HEX 292 | -10/Exiles | Met EX-BIN 305 | -10/Exiles | Aligned with FarCom system 306 | -10/Exiles | Build established: Mutant 306 | -10/Exiles | Given EX-Vault access code 334 | -10/Exiles | Opened EX-Vault 342 | -10/Exiles | Found Modified TNC 367 | -10/Exiles | Warned to stay clear of 0b10 Research branches 404 | -10/Exiles | Met EX-DEC 446 | -10/Exiles | Discovered new exit (range 12) 458 | -10/Exiles | Left Exiles lab with Modified TNC 458 | -10/Exiles | Entered Mines 459 | -9/Mines | Learned location of Storage (-8) 462 | -9/Mines | Learned location of Zion (-7) 496 | -9/Mines | Identified exit to Materials 591 | -9/Mines | Entered Materials 591 | -8/Materials | Evolved 4 slots: Propulsion x1, Utility x1, Weapon x2 722 | -8/Materials | Self-destructed Last Messages --------------- PARAMETERS=PROPULSION+1,UTILITY+1,WEAPON+2 LOCATION=MATERIALS GOAL=ESCAPE 00591_ Receiving FarCom transmissions... 00597_ Dropped Aluminum Leg. 00599_ Acquired Arm. Huge Wheel. 00633_ Acquired Med. Storage Unit. 00635_ Dropped Sml. Storage Unit. 00646_ Material Processor disabled. 00650_ Critical hit (Burn: +37). 00663_ R-06 Scavenger collects Sml. Storage Unit. 00668_ G-50 Soldier destroyed. 00672_ Acquired Carbon-fiber Leg. 00709_ Imp. Heat Sink destroyed. 00711_ K-01 Serf collects debris. 00715_ Critical hit (Burn: +37). 00715_ K-01 Serf collects debris. 00719_ Lgt. Nuclear Core destroyed. 00719_ G-47 Trooper destroyed. 00722_ Carbon-fiber Leg destroyed. Map ----- +----------------------------------------------------+ | ?????????????????????????????????????????????????? | | ?????????????????????????????????????????????????? | | ?????????????????????????? ??????????????????????? | | ?????????????????????????? ??????????????????????? | | ?????????????????????????? ??????????????????????? | | ?????????????????????????? ??????????????????????? | | ?????????????????????????? ??????????????????????? | | ?????????????????????????? ??????????????????????? | | ?????????????????????????? ??????????????????????? | | ?????????????????????????# #?????????????????????? | | ?????????????????????????# #?????????????????????? | | ?????????????????????????# #???????s?????????????? | | ?????????????????????????# #?????????????????????? | | ?????????????????????????# #???????s?????????????? | | ?????????????????????????# #???????s?????????????? | | ????????????????????######+###???????????????????? | | ????????????????????# ###?????????????????? | | ????????????????????# ! ""#?????????????????? | | ????????????????????# Y"#?????????????????? | | ????????????????????# """ ""#?????????????????? | | ????????????????????# """"" ###?????????????????? | | ????????????????????# """"" #?????w?????????????? | | ????????????????????# """ " #???????????????????? | | ??????###########???# "" ##### #?????????? | | ??????# #???#! %r /w #?????????? | | ??????# "" #########@#########??????????????? | | ??????# "" """ # ** #?????????????????????? | | ??????# "T """ + k g#?????????????????????? | | ####### "" """ # Y ????????????????? | | ==!!||# "" # ##############???????????????? | | = !!||# # #????????????????????????????? | | === # # #????????????????????????????? | | #####+##### #????????????????????????????? | | #????????????????????????????? | | #?????????????????Y??????????? | | #????????????????????????????? | | ########## ###+####????????????????????????????? | | ?????????# #???????????????????????????????????? | | ?????????# #???????????????????????????????????? | | ?????????# #???????????????????????????????????? | | ?????????# #???????????????????????????????????? | | ?????????# #???????????????????????????????????? | | ?????????# #???????????????????????????????????? | | ?????????# #???????????????????????????????????? | | ?????????# #???????????????????????????????????? | | ?????????? #???????????????????????????????????? | | ?????????? +???????????????????????????????????? | | ?????????? #???????????????????????????????????? | | ?????????? ????????????????????????????????????? | | ?????????????????????????????????????????????????? | +----------------------------------------------------+ Best States ------------- Heat Dissipation 45 Energy Generation 14 Energy Capacity 160 Matter Stores 300 Matter Capacity 300 Sight Range 16 Terrain Scan Density 10 Evasion (%) 55 Item Schematics ----------------- None Robot Schematics ------------------ None Fabricated ------------ Nothing Repaired ---------- Nothing Studied --------- None Alien Tech Used ----------------- None Achievements -------------- None Challenges ------------ None Game ------ Seed MicroMicrodissipatorWall Manual? 0 Play Time 00:08:52 Cumulative 18.5 hours Start 2026.02.28 @ 21:20:24 End 2026.02.28 @ 21:29:26 Sessions 1 Manual Loads 0 Difficulty Rogue Special Mode None Game No. 29 Rogue 29 Adventurer 0 Explorer 0 Win Type - Total 0 Types 0/0/0/0/0/0/0/0/0/0 Lore% 42 Gallery% 27 Achievement% 27 Wizard Run 0 Options --------- Layout 0 ASCII 0 Keyboard 0 Movement Arrows Keybinds 0 Fullscreen 2 Font 18/X11Bold Map View 76x50 Zoom Use 0% Tactical HUD 1 Map Filters NONE Filters NONE Steam 1 RUN: a8dd652f-6f5b-45b9-ae3d-155d709d8a73